bitfinex/quotes_BTCUSD_20220211
["timestamp","ask_amount","ask_price","bid_price","bid_amount"]
[1644611896337,0.00025014,42506.0,42502.0,0.0010307]
[1644611896545,0.00025014,42508.0,42503.0,0.331361]
[1644611896841,0.00043995,42505.0,42503.0,0.1]
[1644611897037,0.00043995,42505.0,42503.0,0.35373463]
[1644611897237,0.00043995,42505.0,42503.0,0.32696104]
[1644611897439,0.00175955,42511.0,42503.0,0.32696104]
[1644611897440,0.001,42514.0,42503.0,0.42696104]
[1644611897643,0.05,42516.0,42505.0,1.1916]
[1644611897644,0.00026588,42507.0,42505.0,1.1916]
[1644611897841,0.011,42529.0,42505.0,1.1916]
[1644611897842,0.05,42520.0,42506.0,0.7836935]
[1644611898038,0.05,42520.0,42511.0,0.331361]
[1644611898237,0.00402541,42529.0,42512.0,0.331361]
[1644611898238,0.05402541,42529.0,42512.0,0.331361]
[1644611898446,0.24963601,42528.0,42522.0,0.37915397]
[1644611898837,0.24963601,42528.0,42522.0,0.47915397]
[1644611899038,0.24963601,42528.0,42522.0,0.1]
[1644611899541,0.24963601,42528.0,42517.0,0.058822]
[1644611899742,0.24963601,42528.0,42508.0,0.368039]
[1644611899743,0.05,42519.0,42506.0,0.3877]
[1644611899972,0.45,42527.0,42502.0,0.0010307]
[1644611899973,0.33059174,42506.0,42502.0,0.0010307]
[1644611900470,0.33059174,42506.0,42500.0,0.00097302]
[1644611900471,0.08955752,42512.0,42504.0,0.00097327]
[1644611900668,0.058855,42510.0,42504.0,0.00097327]
[1644611901268,0.22382194,42508.0,42504.0,0.00097327]
[1644611901469,0.32983412,42507.0,42504.0,0.00097327]
[1644611901667,0.058858,42506.0,42504.0,0.00097327]
[1644611902067,0.34009209,42506.0,42504.0,0.00097327]
[1644611902270,0.28505184,42505.0,42504.0,0.00097327]
[1644611903923,0.3578441,42505.0,42504.0,0.00097327]
[1644611904126,0.42279226,42505.0,42504.0,0.00097327]
[1644611904326,0.46629226,42505.0,42504.0,0.00097327]
[1644611904622,0.16629226,42505.0,42504.0,0.00097327]
[1644611904824,0.0435,42505.0,42504.0,0.00097327]
[1644611905228,0.176579,42508.0,42504.0,0.00097327]
[1644611905229,0.058854,42508.0,42504.0,0.00097327]
[1644611905426,0.30029847,42515.0,42504.0,0.00097327]
[1644611906026,0.30029847,42515.0,42510.0,0.28974389]
[1644611906027,0.60053311,42515.0,42510.0,0.28974389]
[1644611906231,0.00044184,42515.0,42510.0,0.28974389]
[1644611906435,0.00044184,42515.0,42511.0,0.331361]
[1644611906728,0.00044184,42515.0,42512.0,0.39156976]
[1644611906930,0.00044184,42515.0,42512.0,0.49156976]
[1644611907228,0.05,42527.0,42525.0,0.37921518]
[1644611907477,0.28929752,42526.0,42525.0,0.37921518]
[1644611907674,0.28929752,42526.0,42518.0,0.05]
[1644611907874,0.28929752,42526.0,42518.0,0.15]
[1644611908378,0.28758938,42526.0,42512.0,0.1]
[1644611908576,0.28758938,42526.0,42515.0,0.30124877]
[1644611908577,0.58587163,42523.0,42515.0,0.30124877]
[1644611908778,0.58587163,42523.0,42515.0,0.1]
[1644611909775,0.00028426,42521.0,42515.0,0.43019014]
[1644611909980,0.00028426,42521.0,42515.0,0.33019014]
[1644611910177,0.00028426,42521.0,42515.0,0.43019014]
[1644611910478,0.00028426,42521.0,42514.0,0.00102308]
[1644611910676,0.64470463,42523.0,42514.0,0.00102308]
[1644611910875,0.23934741,42529.0,42520.0,0.32643625]
[1644611910876,0.34179097,42526.0,42520.0,0.32643625]
[1644611911079,0.23934741,42529.0,42514.0,0.00102308]
[1644611911080,0.00177639,42527.0,42514.0,0.00102308]
[1644611911740,0.00177639,42527.0,42519.0,0.19151194]
[1644611911940,0.00402541,42529.0,42525.0,0.39544511]
[1644611912341,0.00402541,42529.0,42525.0,0.1]
[1644611912342,0.26972834,42527.0,42525.0,0.1]
[1644611912540,0.00580177,42529.0,42525.0,0.1]
[1644611913141,0.00402541,42529.0,42519.0,0.11762219]
[1644611913347,0.33758026,42520.0,42515.0,0.1]
[1644611913544,0.33758026,42520.0,42514.0,0.00102308]
[1644611913945,0.00026731,42522.0,42514.0,0.00102308]
[1644611914141,0.07558081,42523.0,42514.0,0.00102308]
[1644611914343,0.30284691,42520.0,42514.0,0.00102308]
[1644611914547,0.00026731,42525.0,42514.0,0.00102308]
[1644611914745,0.261536,42528.0,42514.0,0.00102308]
[1644611914746,0.00030038,42520.0,42518.0,0.331361]
[1644611914967,0.00030038,42520.0,42519.0,0.331361]
[1644611915570,0.34398718,42526.0,42521.0,0.00101864]
[1644611915768,0.34371987,42526.0,42521.0,0.00101864]
[1644611915968,0.00044647,42522.0,42521.0,0.00101864]
[1644611916771,0.00026731,42527.0,42521.0,0.00101864]
[1644611916968,0.00044647,42524.0,42521.0,0.05983164]
[1644611917171,0.00044647,42524.0,42521.0,0.00101864]
[1644611917373,0.00034647,42524.0,42521.0,0.00101864]
[1644611917973,0.00026731,42527.0,42521.0,0.00101864]
[1644611918276,0.00026731,42528.0,42521.0,0.00101864]
[1644611918468,0.00026731,42530.0,42521.0,0.00101864]
[1644611918757,0.26742381,42528.0,42521.0,0.00101864]
[1644611918946,0.26769112,42528.0,42521.0,0.00101864]
[1644611919153,0.24060008,42524.0,42521.0,0.00101864]
[1644611919449,0.29698543,42523.0,42521.0,0.00101864]
[1644611920045,0.28965563,42525.0,42521.0,0.00101864]
[1644611920248,0.28938832,42525.0,42521.0,0.00101864]
[1644611920448,0.28938832,42525.0,42522.0,0.0009546]
[1644611920650,0.37229973,42527.0,42522.0,0.0009546]
[1644611920851,0.1063554,42529.0,42523.0,0.331361]
[1644611920852,0.00026731,42528.0,42523.0,0.331361]
[1644611921050,0.00402541,42529.0,42524.0,0.331361]
[1644611921251,0.00026731,42528.0,42522.0,0.0009546]
[1644611921452,0.00429272,42529.0,42522.0,0.0009546]
[1644611921652,0.00026731,42528.0,42525.0,0.3139576]
[1644611921851,0.00432386,42529.0,42525.0,0.4139576]
[1644611922049,0.00432386,42529.0,42525.0,0.4639576]
[1644611922477,0.00432386,42529.0,42522.0,0.0009546]
[1644611922671,0.00402541,42529.0,42522.0,0.0009546]
[1644611922871,0.00431279,42529.0,42522.0,0.0009546]
[1644611923073,0.00431279,42529.0,42524.0,0.331361]
[1644611923373,0.00431279,42529.0,42528.0,0.36990194]
[1644611923972,0.00402541,42529.0,42528.0,0.70529591]
[1644611924176,0.00402541,42529.0,42528.0,0.36990194]
[1644611924774,0.00402541,42529.0,42528.0,0.1]
[1644611924973,0.00402541,42529.0,42522.0,0.0009546]
[1644611925172,0.2818927,42528.0,42522.0,0.0009546]
[1644611925374,0.28216001,42528.0,42522.0,0.0009546]
[1644611925674,0.33097773,42526.0,42522.0,0.0009546]
[1644611925875,0.33097773,42526.0,42519.0,0.00095454]
[1644611926331,0.34689358,42520.0,42519.0,0.00095454]
[1644611926932,0.63879623,42520.0,42519.0,0.00095454]
[1644611927130,0.43004011,42520.0,42519.0,0.00095454]
[1644611927330,0.05910231,42523.0,42519.0,0.00095454]
[1644611927532,0.33126434,42524.0,42519.0,0.00095454]
[1644611927737,0.00026731,42524.0,42519.0,0.00095454]
[1644611927934,0.54095192,42525.0,42519.0,0.00095454]
[1644611928133,0.5347378,42525.0,42519.0,0.00095454]
[1644611928342,0.00026731,42525.0,42519.0,0.00095454]
[1644611928537,0.33127615,42526.0,42519.0,0.00095454]
[1644611928735,0.00026731,42525.0,42520.0,0.331361]
[1644611928932,0.33097773,42526.0,42520.0,0.10881523]
[1644611929132,0.33142344,42526.0,42520.0,0.1]
[1644611929337,0.25970364,42525.0,42520.0,0.1]
[1644611929734,0.32456499,42522.0,42520.0,0.1]
[1644611929980,0.00026731,42524.0,42519.0,0.00095454]
[1644611930181,0.25970364,42525.0,42519.0,0.00193868]
[1644611930182,0.0814342,42521.0,42519.0,0.00193868]
[1644611930387,0.05,42520.0,42519.0,0.00193868]
[1644611930587,0.3935,42520.0,42519.0,3.868e-05]
[1644611930784,0.06771856,42513.0,42512.0,0.0001479]
[1644611931180,0.25797135,42513.0,42501.0,0.78998374]
[1644611931381,0.2896637,42512.0,42501.0,0.3944]
[1644611932382,0.2896637,42512.0,42503.0,0.34198942]
[1644611932783,0.2896637,42512.0,42501.0,0.3944]
[1644611932987,0.2896637,42512.0,42501.0,0.4944]
[1644611933183,0.2896637,42512.0,42503.0,0.25997288]
[1644611933382,0.2896637,42512.0,42501.0,0.3944]
[1644611933583,0.28501747,42511.0,42501.0,0.3944]
[1644611933826,0.28501747,42511.0,42509.0,0.00044595]
[1644611934832,0.28501747,42511.0,42501.0,0.3944]
[1644611934833,0.0435,42513.0,42506.0,0.28501625]
[1644611935029,0.32436305,42521.0,42508.0,0.00044595]
[1644611935030,0.00026731,42516.0,42508.0,0.00044595]
[1644611935230,0.00026731,42517.0,42508.0,0.00044595]
[1644611935428,0.0435,42519.0,42508.0,0.00044595]
[1644611935429,0.00026731,42518.0,42508.0,0.00044595]
[1644611935629,0.00026731,42521.0,42511.0,0.00170723]
[1644611935830,0.3,42522.0,42511.0,0.31018769]
[1644611935831,0.32467846,42517.0,42511.0,0.31018769]
[1644611936127,0.00026731,42521.0,42511.0,0.31018769]
[1644611936327,0.00026731,42517.0,42512.0,0.00044595]
[1644611936628,0.00026731,42521.0,42512.0,0.00044595]
[1644611937030,0.29822544,42520.0,42512.0,0.00044595]
[1644611937332,0.29822544,42520.0,42511.0,0.00170723]
[1644611937571,0.29849275,42520.0,42513.0,0.34347105]
[1644611937769,0.29822544,42520.0,42513.0,0.34347105]
[1644611938172,0.07680858,42518.0,42512.0,0.00044596]
[1644611938374,0.19623212,42513.0,42511.0,0.00170723]
[1644611938571,0.29094562,42512.0,42511.0,0.00170723]
[1644611938970,0.28973684,42512.0,42511.0,0.00170723]
[1644611939172,0.5347226,42513.0,42511.0,0.00170723]
[1644611939572,0.5935706,42513.0,42511.0,0.00170723]
[1644611939772,0.5347226,42513.0,42511.0,0.00170723]
[1644611940274,0.90010757,42513.0,42511.0,0.00170723]
[1644611940775,0.56161709,42513.0,42510.0,9.232e-05]
[1644611940973,0.117691,42515.0,42510.0,0.00049868]
[1644611941235,0.32395697,42516.0,42510.0,0.00049868]
[1644611941236,0.06663881,42511.0,42510.0,0.00049868]
[1644611941629,0.32395697,42516.0,42510.0,0.00049868]
[1644611941828,0.058848,42513.0,42510.0,0.00049868]
[1644611942028,0.058848,42513.0,42510.0,9.232e-05]
[1644611942229,0.62255239,42512.0,42510.0,9.232e-05]
[1644611942632,0.56370172,42512.0,42510.0,9.232e-05]
[1644611943030,0.63414576,42512.0,42510.0,9.232e-05]
[1644611943430,0.30082712,42511.0,42510.0,9.232e-05]
[1644611944431,0.97956919,42512.0,42510.0,9.232e-05]
[1644611944970,0.96797588,42512.0,42510.0,9.232e-05]
[1644611945178,0.90912515,42512.0,42510.0,9.232e-05]
[1644611945371,0.90912515,42512.0,42511.0,0.00083068]
[1644611945372,0.55400025,42512.0,42511.0,0.00083068]
[1644611945772,0.058851,42512.0,42511.0,0.00083068]
[1644611945975,0.058848,42513.0,42511.0,0.00083068]
[1644611946180,0.28236916,42518.0,42511.0,0.00083068]
[1644611946373,0.34271586,42517.0,42511.0,0.00083068]
[1644611946773,0.23860465,42515.0,42511.0,0.00083068]
[1644611946975,0.33373153,42514.0,42511.0,0.00083068]
[1644611947275,0.44493653,42514.0,42511.0,0.00083068]
[1644611947474,0.07332435,42513.0,42511.0,0.00083068]
[1644611947682,0.35864263,42512.0,42511.0,0.00083068]
[1644611949223,1.06433263,42512.0,42511.0,0.00083068]
[1644611950928,1.06433263,42512.0,42510.0,3e-06]
[1644611950929,0.058864,42511.0,42510.0,3e-06]
[1644611951130,0.058864,42511.0,42509.0,8.87e-06]
[1644611951131,0.63193768,42511.0,42509.0,8.87e-06]
[1644611951328,0.77842853,42510.0,42500.0,0.5]
[1644611951527,0.08038138,42503.0,42500.0,0.5]
[1644611951823,0.34614277,42502.0,42500.0,0.5]
[1644611952023,0.87535293,42501.0,42500.0,0.5]
[1644611952328,0.08726883,42487.0,42479.0,0.1]
[1644611952582,0.08726883,42487.0,42475.0,0.3992]
[1644611952583,0.283692,42486.0,42475.0,0.3992]
[1644611952980,0.283692,42486.0,42464.0,0.7696]
[1644611952981,0.0435,42486.0,42464.0,0.7696]
[1644611953181,0.18774602,42477.0,42468.0,0.31788073]
[1644611953376,0.05889567,42476.0,42470.0,0.32670999]
[1644611954177,0.30195516,42478.0,42470.0,0.32670999]
[1644611954375,0.30195516,42478.0,42468.0,0.31788073]
[1644611954676,0.30195516,42478.0,42464.0,0.3857]
[1644611954677,0.07196797,42473.0,42464.0,0.3857]
[1644611955079,0.33909869,42477.0,42464.0,0.3857]
[1644611955376,0.32842763,42475.0,42470.0,0.31973097]
[1644611955580,0.34545516,42478.0,42470.0,0.31973097]
[1644611956244,0.42846316,42478.0,42470.0,0.31973097]
[1644611956440,0.42846316,42478.0,42464.0,0.3857]
[1644611956441,0.058901,42477.0,42464.0,0.3857]
[1644611956839,0.058901,42477.0,42464.0,0.5357]
[1644611957240,0.05889687,42477.0,42464.0,0.5357]
[1644611957438,0.34506969,42471.0,42461.0,0.17545181]
[1644611958040,0.08088178,42471.0,42461.0,0.17545181]
[1644611958440,0.31757268,42468.0,42461.0,0.44387876]
[1644611958941,0.34428757,42472.0,42468.0,0.21688267]
[1644611958942,0.43637779,42472.0,42468.0,0.21688267]
[1644611959141,0.32936834,42472.0,42468.0,0.21688267]
[1644611959343,0.102409,42472.0,42468.0,0.21688267]
[1644611959976,0.31737324,42470.0,42468.0,0.21688267]
[1644611961376,0.0435,42472.0,42468.0,0.21688267]
[1644611962578,0.102408,42472.0,42468.0,0.21688267]
[1644611963384,0.152408,42472.0,42468.0,0.21688267]
[1644611963580,0.102408,42472.0,42468.0,0.21688267]
[1644611964827,0.102408,42472.0,42468.0,0.16688267]
[1644611965429,0.38110393,42469.0,42468.0,0.16688267]
[1644611965628,0.44001693,42469.0,42468.0,0.16688267]
[1644611966429,0.63759685,42469.0,42468.0,0.16688267]
[1644611966946,0.12325965,42468.0,42461.0,0.17545181]
[1644611967132,0.058925,42466.0,42461.0,0.17545181]
[1644611967331,0.0435,42465.0,42461.0,0.17545181]
[1644611967580,0.2147966,42462.0,42461.0,0.17545181]
[1644611967780,0.54209651,42462.0,42461.0,0.17545181]
[1644611968181,0.60101771,42462.0,42461.0,0.17545181]
[1644611968982,0.65993971,42462.0,42461.0,0.17545181]
[1644611969478,0.70993971,42462.0,42461.0,0.17545181]
[1644611970079,0.70993971,42462.0,42461.0,0.01402546]
[1644611970080,0.75993971,42462.0,42461.0,0.01402546]
[1644611970283,0.80993971,42462.0,42461.0,0.01402546]
[1644611970479,2.01645971,42462.0,42461.0,0.01402546]
[1644611970679,1.96645971,42462.0,42461.0,0.01402546]
[1644611970879,1.4678632,42462.0,42461.0,0.01402546]
[1644611971331,1.11981397,42461.0,42457.0,0.0011]
[1644611971532,0.05,42458.0,42457.0,0.0001]
[1644611971731,0.05,42458.0,42445.0,0.0011]
[1644611971732,0.0935,42458.0,42450.0,0.0001]
[1644611972031,0.08373398,42451.0,42450.0,0.0001]
[1644611973027,0.14267498,42451.0,42450.0,0.0001]
[1644611973228,0.058941,42451.0,42450.0,0.0001]
[1644611973436,0.117867,42456.0,42450.0,0.0001]
[1644611973437,0.0435,42457.0,42450.0,0.0001]
[1644611973637,0.5,42456.0,42450.0,0.0001]
[1644611974029,0.058929,42455.0,42450.0,0.0001]
[1644611974990,0.25188139,42454.0,42450.0,0.0001]
[1644611975192,0.31081539,42454.0,42450.0,0.0001]
[1644611975589,0.058935,42453.0,42450.0,0.0001]
[1644611975788,0.058935,42453.0,42452.0,0.00091341]
[1644611976791,0.058935,42453.0,42445.0,0.0011]
[1644611977490,0.07324441,42448.0,42445.0,0.0011]
[1644611977698,0.39911888,42448.0,42445.0,0.0011]
[1644611979234,0.07324441,42448.0,42445.0,0.0011]
[1644611981037,0.07324441,42448.0,42447.0,0.00084935]
[1644611981236,0.11787192,42449.0,42447.0,0.00084935]
[1644611981441,0.33434151,42450.0,42447.0,0.00084935]
[1644611983871,0.33434151,42450.0,42449.0,0.35482834]
[1644611984074,0.07415101,42452.0,42449.0,0.35482834]
[1644611984272,0.058929,42454.0,42449.0,0.35482834]
[1644611984273,0.5,42454.0,42449.0,0.35482834]
[1644611985272,0.5,42454.0,42450.0,0.058924]
[1644611985473,0.5,42460.0,42450.0,0.058924]
[1644611985673,0.5,42460.0,42450.0,0.37518434]
[1644611985872,0.5,42460.0,42450.0,0.058924]
[1644611986073,0.5,42460.0,42456.0,0.33066483]
[1644611986328,0.5,42460.0,42457.0,0.34818863]
[1644611987430,1.05363086,42462.0,42457.0,0.34818863]
[1644611987431,0.70652,42462.0,42457.0,0.34818863]
[1644611987834,0.70652,42462.0,42457.0,0.44818863]
[1644611988031,0.70652,42462.0,42458.0,0.381361]
[1644611988431,0.70652,42462.0,42458.0,0.258906]
[1644611988729,0.55,42469.0,42460.0,0.331361]
[1644611988932,0.058901,42482.0,42477.0,0.39502719]
[1644611989130,0.058901,42482.0,42469.0,0.00450424]
[1644611989534,0.5,42481.0,42469.0,0.00450424]
[1644611989985,0.5,42481.0,42474.0,0.331361]
[1644611990185,0.5,42481.0,42475.0,0.331361]
[1644611990386,0.3868,42481.0,42476.0,0.331361]
[1644611990584,0.001,42491.0,42487.0,0.37556953]
[1644611991185,0.29202203,42490.0,42487.0,0.37556953]
[1644611992793,0.29202203,42490.0,42487.0,0.47556953]
[1644611992987,0.29202203,42490.0,42486.0,0.058872]
[1644611992988,0.29202203,42490.0,42486.0,0.11774123]
[1644611993193,0.29202203,42490.0,42481.0,0.1]
[1644611993387,0.29202203,42490.0,42479.0,0.117751]
[1644611993826,0.29202203,42490.0,42479.0,0.42765931]
[1644611994024,0.29202203,42490.0,42482.0,0.31324305]
[1644611994226,0.29202203,42490.0,42482.0,0.37211905]
[1644611994423,0.23249145,42488.0,42482.0,0.37211905]
[1644611994632,0.0634961,42485.0,42482.0,0.0004456]
[1644611995424,0.0634961,42485.0,42470.0,0.058891]
[1644611995625,0.20574561,42481.0,42470.0,0.35698726]
[1644611995828,0.05,42490.0,42470.0,0.45698726]
[1644611996024,0.28811479,42483.0,42477.0,0.2935334]
[1644611996226,0.001,42491.0,42477.0,0.2935334]
[1644611996427,0.306,42501.0,42478.0,0.31844262]
[1644611996628,0.6305,42503.0,42481.0,0.058875]
[1644611996830,0.22974407,42497.0,42485.0,0.36838515]
[1644611997476,0.3388366,42488.0,42485.0,0.36838515]
[1644611997678,0.22974407,42497.0,42485.0,0.36838515]
[1644611998678,0.25221541,42490.0,42489.0,0.00044463]
[1644611998879,0.05888,42495.0,42489.0,0.00044463]
[1644611999278,0.117761,42499.0,42489.0,0.00044463]
[1644611999481,0.00578483,42504.0,42489.0,0.00044463]
[1644611999786,0.002,42503.0,42488.0,0.05]
[1644611999980,0.002,42503.0,42492.0,0.00044462]
[1644612000280,0.002,42503.0,42494.0,0.32120469]
[1644612000479,0.002,42503.0,42494.0,0.31050481]
[1644612000678,0.002,42503.0,42494.0,0.41050481]
[1644612001080,0.002,42503.0,42501.0,0.36022035]
[1644612001535,0.002,42503.0,42496.0,0.00044461]
[1644612002130,0.002,42503.0,42489.0,0.1]
[1644612002333,0.002,42503.0,42497.0,0.0004446]
[1644612002731,0.25646723,42498.0,42497.0,0.0004446]
[1644612003130,0.32036427,42498.0,42497.0,0.0004446]
[1644612003331,0.32036427,42498.0,42487.0,0.00079667]
[1644612003529,0.37036427,42498.0,42495.0,0.00044461]
[1644612003929,0.30530784,42497.0,42495.0,0.00044461]
[1644612004332,0.36418614,42497.0,42495.0,0.00044461]
[1644612004529,0.36418614,42497.0,42487.0,0.00079667]
[1644612004835,0.00578483,42496.0,42494.0,0.00044462]
[1644612005099,0.0435,42495.0,42494.0,0.00044462]
[1644612005296,0.74947,42495.0,42494.0,0.00044462]
[1644612005695,0.908354,42495.0,42494.0,0.00044462]
[1644612005900,0.36989755,42489.0,42478.0,0.38843549]
[1644612006096,0.36989755,42489.0,42473.0,0.92438515]
[1644612006097,0.36989755,42489.0,42473.0,0.92802696]
[1644612006297,0.36989755,42489.0,42473.0,1.02262396]
[1644612006495,0.33413385,42485.0,42473.0,0.84837521]
[1644612006695,0.0435,42490.0,42473.0,0.66152396]
[1644612006903,0.00778483,42503.0,42489.0,0.05]
[1644612006904,0.002,42503.0,42489.0,0.05]
[1644612007099,0.002,42503.0,42495.0,0.05]
[1644612007297,0.01,42509.0,42490.0,0.3]
[1644612007298,0.053,42513.0,42499.0,0.05]
[1644612007501,0.053,42513.0,42496.0,0.331361]
[1644612007502,0.002,42513.0,42504.0,0.331361]
[1644612007708,0.002,42513.0,42511.0,0.33294145]
[1644612007899,0.002,42513.0,42511.0,0.43294145]
[1644612008102,0.002,42513.0,42511.0,0.33294145]
[1644612008301,0.002,42513.0,42511.0,0.29899374]
[1644612008500,0.002,42513.0,42511.0,0.34899374]
[1644612008740,0.002,42513.0,42511.0,0.69157683]
[1644612008926,0.002,42513.0,42511.0,0.40782574]
[1644612009231,0.00026731,42518.0,42513.0,0.0588213]
[1644612009430,0.00026731,42520.0,42513.0,0.0588213]
[1644612009627,0.00126731,42521.0,42513.0,0.0588213]
[1644612009829,0.00026731,42520.0,42513.0,0.0588213]
[1644612010028,0.35146975,42516.0,42513.0,0.0588213]
[1644612010234,0.35146975,42516.0,42515.0,0.058826]
[1644612010431,0.35146975,42516.0,42511.0,0.1]
[1644612010432,0.00026731,42520.0,42507.0,0.0001454]
[1644612010632,0.00026731,42517.0,42510.0,0.05]
[1644612010931,0.001,42521.0,42508.0,0.05]
[1644612010932,0.00026731,42520.0,42508.0,0.05]
[1644612011228,0.00044392,42518.0,42507.0,0.05927569]
[1644612011429,0.00044392,42518.0,42517.0,0.30932985]
[1644612011828,0.00026746,42521.0,42517.0,0.30932985]
[1644612012030,0.00026746,42521.0,42507.0,0.00044238]
[1644612012234,0.00044225,42520.0,42507.0,0.00044238]
[1644612012677,0.00044225,42520.0,42510.0,0.058834]
[1644612013077,0.00026746,42522.0,42510.0,0.40533736]
[1644612013276,0.19028037,42520.0,42510.0,0.34650336]
[1644612013677,0.19028037,42520.0,42514.0,0.28089309]
[1644612013876,0.19028037,42520.0,42510.0,0.34650336]
[1644612014276,0.19028037,42520.0,42510.0,0.44650336]
[1644612014478,0.00026746,42522.0,42517.0,0.32756346]
[1644612014678,0.25186957,42523.0,42517.0,0.32756346]
[1644612014877,0.25186957,42523.0,42504.0,0.19337421]
[1644612014878,0.25186957,42523.0,42504.0,0.29337421]
[1644612015081,0.05,42513.0,42504.0,0.1]
[1644612015278,0.05,42513.0,42504.0,0.15]
[1644612015481,0.2910867,42519.0,42499.0,0.117686]
[1644612015678,0.29135416,42519.0,42518.0,0.00080472]
[1644612015878,0.0507113,42520.0,42518.0,0.00080472]
[1644612016080,0.20969,42520.0,42518.0,0.00080472]
[1644612016630,0.42985021,42519.0,42518.0,4.72e-06]
[1644612016828,0.52985021,42519.0,42518.0,4.72e-06]
[1644612017026,0.4859025,42519.0,42518.0,4.72e-06]
[1644612017325,0.48563504,42519.0,42518.0,4.72e-06]
[1644612017526,2.19011504,42519.0,42518.0,4.72e-06]
[1644612017726,0.117731,42518.0,42511.0,0.00044401]
[1644612017927,0.117731,42518.0,42500.0,0.32835059]
[1644612017928,0.05,42512.0,42500.0,0.32835059]
[1644612018131,0.05,42512.0,42493.0,3.22878427]
[1644612018132,0.08192921,42502.0,42493.0,3.22878427]
[1644612018326,0.12542921,42502.0,42487.0,0.396]
[1644612018529,0.1177371,42501.0,42481.0,0.1223]
[1644612018729,0.1177371,42501.0,42479.0,0.1177258]
[1644612018928,0.1177371,42501.0,42478.0,0.7627]
[1644612018929,0.08231202,42489.0,42480.0,0.117731]
[1644612019127,0.37844861,42491.0,42487.0,0.28935191]
[1644612019327,0.60062766,42491.0,42488.0,0.00014638]
[1644612019530,0.22217905,42491.0,42488.0,0.00014638]
[1644612019828,0.29616691,42496.0,42488.0,0.00014638]
[1644612020115,0.05,42491.0,42488.0,0.00014638]
[1644612020314,0.38311538,42490.0,42488.0,0.00014638]
[1644612020518,0.058886,42486.0,42472.0,0.25176333]
[1644612020719,0.08265359,42477.0,42472.0,0.25176333]
[1644612020914,0.32964421,42481.0,42478.0,0.24796076]
[1644612021524,0.05,42479.0,42478.0,0.24796076]
[1644612021716,0.38313034,42479.0,42478.0,0.24796076]
[1644612021913,0.51554619,42479.0,42478.0,0.24796076]
[1644612022115,0.61554619,42479.0,42478.0,0.24796076]
[1644612022419,0.61554619,42479.0,42477.0,0.00040384]
[1644612022420,1.30570348,42478.0,42477.0,0.00040384]
[1644612022614,1.39920348,42478.0,42477.0,0.00040384]
[1644612022919,1.39920348,42478.0,42469.0,0.00450424]
[1644612022920,0.20431236,42470.0,42469.0,0.00450424]
[1644612023118,0.59259209,42470.0,42469.0,0.00450424]
[1644612023318,0.90908923,42470.0,42469.0,0.00450424]
[1644612023514,0.0435,42470.0,42469.0,0.00450424]
[1644612025138,0.0435,42470.0,42469.0,0.33586524]
[1644612025335,0.0435,42470.0,42469.0,0.10450424]
[1644612025636,0.31863165,42476.0,42475.0,0.29341855]
[1644612025839,0.31863165,42476.0,42470.0,0.05]
[1644612026035,0.08774586,42475.0,42470.0,0.331361]
[1644612026435,0.08774586,42475.0,42469.0,0.00450424]
[1644612026636,0.08774586,42475.0,42470.0,0.00040664]
[1644612026840,0.31685769,42471.0,42470.0,0.00040664]
[1644612027238,0.05,42471.0,42470.0,0.00040664]
[1644612027479,0.05,42471.0,42469.0,0.00450424]
[1644612028281,0.39214952,42472.0,42469.0,0.00450424]
[1644612028880,0.33324152,42472.0,42469.0,0.00450424]
[1644612029481,0.05,42470.0,42469.0,0.00450424]
[1644612029682,0.36876779,42470.0,42469.0,0.00450424]
[1644612029884,0.46876779,42470.0,42462.0,0.00011628]
[1644612030084,0.46876779,42470.0,42461.0,0.01]
[1644612030085,0.05,42463.0,42461.0,0.01]
[1644612030286,0.55377194,42462.0,42461.0,0.01]
[1644612030485,0.90602796,42462.0,42461.0,0.01]
[1644612031087,0.90602796,42462.0,42450.0,0.0001]
[1644612031338,0.90602796,42462.0,42459.0,0.00014522]
[1644612031339,0.108928,42460.0,42459.0,0.00014522]
[1644612031537,0.108928,42460.0,42459.0,5.22e-06]
[1644612031538,0.517861,42460.0,42459.0,5.22e-06]
[1644612031736,0.517861,42460.0,42450.0,0.0001]
[1644612031737,0.05895,42457.0,42450.0,0.0001]
[1644612031933,1.12879689,42450.0,42441.0,0.01]
[1644612032139,0.04833412,42442.0,42439.0,0.00011978]
[1644612032333,0.38639023,42441.0,42439.0,0.00011978]
[1644612032532,0.69920764,42441.0,42439.0,0.00011978]
[1644612032733,0.97095389,42441.0,42439.0,0.00011978]
[1644612032933,0.6435,42440.0,42436.0,0.00099]
[1644612033135,0.04833412,42437.0,42426.0,0.0011]
[1644612033335,0.04833412,42432.0,42426.0,0.0011]
[1644612033535,0.09183412,42432.0,42426.0,0.0011]
[1644612033935,0.40471104,42432.0,42426.0,0.0011]
[1644612035492,0.04833412,42427.0,42426.0,0.0011]
[1644612035694,0.44392237,42427.0,42426.0,0.0011]
[1644612036097,1.05,42424.0,42410.0,0.0011]
[1644612036302,0.07828804,42402.0,42401.0,0.0072]
[1644612036499,0.05,42419.0,42404.0,0.15657608]
[1644612036500,0.04833412,42407.0,42404.0,0.15657608]
[1644612036996,0.058995,42413.0,42404.0,0.15657608]
[1644612036997,0.02582912,42413.0,42404.0,0.15657608]
[1644612037198,0.29932887,42407.0,42404.0,0.15657608]
[1644612037401,0.0435,42406.0,42404.0,0.15657608]
[1644612037595,0.0435,42406.0,42397.0,0.00177418]
[1644612038498,0.20943567,42401.0,42395.0,0.0011]
[1644612038747,0.3437245,42400.0,42395.0,0.0011]
[1644612039439,0.07124312,42399.0,42395.0,0.0011]
[1644612039639,0.28173184,42399.0,42395.0,0.0011]
[1644612040039,0.28173184,42399.0,42386.0,0.0011]
[1644612040040,1.05,42398.0,42386.0,0.0011]
[1644612040241,0.26432441,42389.0,42386.0,0.0011]
[1644612040445,0.26432441,42389.0,42381.0,0.00141704]
[1644612040446,1.0511,42388.0,42381.0,0.00141704]
[1644612040644,1.13905133,42388.0,42381.0,0.00141704]
[1644612040839,1.28905133,42388.0,42381.0,0.00141704]
[1644612041142,0.25769747,42370.0,42364.0,0.26066786]
[1644612041341,0.10253256,42387.0,42359.0,0.0511]
[1644612041342,0.0435,42378.0,42372.0,0.69642436]
[1644612041546,0.3,42386.0,42359.0,0.0011]
[1644612041547,0.07085981,42363.0,42359.0,0.0011]
[1644612041747,0.06875274,42363.0,42359.0,0.0011]
[1644612042337,0.06875274,42363.0,42360.0,0.00041795]
[1644612042579,0.43417739,42363.0,42360.0,0.00041795]
[1644612042881,0.0435,42362.0,42360.0,0.00041795]
[1644612043079,0.9,42361.0,42360.0,0.00041795]
[1644612043280,0.9,42361.0,42359.0,0.0011]